[Event "FIDE World Cup G12-A 2024"]
[Site "Batumi"]
[Date "2024.06.25"]
[Round "3.10"]
[White "Ali, Maha"]
[Black "Diaskyzy, Daliya"]
[Result "0-1"]
[ECO "B10"]
[WhiteElo "1601"]
[BlackElo "1793"]
[Annotator "NA RC"]
[PlyCount "76"]
[EventDate "2024.06.23"]
[EventType "swiss"]
[EventCountry "GEO"]
[SourceTitle "playchess.com"]
[Source "ChessBase"]
[SourceQuality "1"]
[TimeControl "5400+30"]

1. e4 {[%emt 0:00:03]} c6 {[%emt 0:00:03]} 2. Nf3 {[%emt 0:00:09]} d5 {[%emt 0:00:05]} 3. exd5 {[%emt 0:00:06]} cxd5 {[%emt 0:00:05]} 4. Ne5 {[%emt 0:00:09]} Nf6 {[%emt 0:02:03]} 5. d4 {[%emt 0:00:16]} Nbd7 {[%emt 0:02:42]} 6. Bf4 {[%emt 0:03:33]} a6 {[%emt 0:03:48]} 7. Bd3 {[%emt 0:00:41]} g6 {[%emt 0:05:38]} 8. O-O {[%emt 0:02:07]} Bg7 {[%emt 0:00:10]} 9. c3 {[%emt 0:02:18]} O-O {[%emt 0:00:11]} 10. Nd2 {[%emt 0:01:27]} Nxe5 {[%emt 0:05:27]} 11. Bxe5 {[%emt 0:00:40]} Bg4 {[%emt 0:00:14]} 12. Qc2 {[%emt 0:01:53]} Qd7 {[%emt 0:00:55]} 13. Nb3 {[%emt 0:02:32]} b6 {[%emt 0:02:12]} 14. h3 {[%emt 0:03:01]} Bf5 {[%emt 0:01:44]} 15. Bxf5 {[%emt 0:01:51]} gxf5 {[%emt 0:02:34]} 16. f3 {[%emt 0:02:19]} h6 {[%emt 0:02:00]} 17. Qf2 {[%emt 0:02:11]} Kh7 {[%emt 0:03:49]} 18. Qh4 {[%emt 0:03:18]} Rg8 {[%emt 0:03:10]} 19. Bf4 {[%emt 0:01:53]} Bf8 {[%emt 0:04:09]} 20. Kf2 {[%emt 0:04:47]} Rg6 {[%emt 0:02:14]} 21. g4 {[%emt 0:02:34]} Bg7 {[%emt 0:19:20]} 22. g5 {[%emt 0:03:21]} Rg8 {[%emt 0:03:12]} 23. Rg1 {[%emt 0:04:23]} Ne8 {[%emt 0:01:20]} 24. gxh6 {[%emt 0:01:49]} Bxh6 {[%emt 0:03:49]} 25. Rg3 {[%emt 0:02:31]} Qc6 {[%emt 0:12:01]} 26. Rxg6 {[%emt 0:06:47]} Qxg6 {[%emt 0:01:30]} 27. Bxh6 {[%emt 0:00:52]} Qxh6 {[%emt 0:00:09]} 28. Qxe7 {[%emt 0:07:30]} Nf6 {[%emt 0:13:46]} 29. Qe5 {[%emt 0:05:06]} Qh4+ {[%emt 0:00:36]} 30. Ke3 {[%emt 0:04:21]} Re8 {[%emt 0:00:32]} 31. Qxe8 {[%emt 0:00:05]} Nxe8 {[%emt 0:00:04]} 32. Rh1 {[%emt 0:01:07]} Nd6 {[%emt 0:00:30]} 33. Nd2 {[%emt 0:01:13]} f4+ {[%emt 0:00:37]} 34. Kd3 {[%emt 0:01:06]} Qf2 {[%emt 0:00:20]} 35. b3 {[%emt 0:00:57]} Nb5 {[%emt 0:00:33]} 36. Rf1 {[%emt 0:01:17]} Qe3+ {[%emt 0:00:07]} 37. Kc2 {[%emt 0:00:23]} Qxc3+ {[%emt 0:00:04]} 38. Kd1 {[%emt 0:00:11]} Nxd4 {[%emt 0:00:11]} 0-1

[Event "FIDE World Cup G12-A 2024"]
[Site "Batumi"]
[Date "2024.06.25"]
[Round "3.11"]
[White "Giorgadze, Mariam"]
[Black "Lipartia, Nino"]
[Result "0-1"]
[ECO "B33"]
[WhiteElo "1533"]
[BlackElo "1437"]
[Annotator "NA RC"]
[PlyCount "68"]
[EventDate "2024.06.23"]
[EventType "swiss"]
[EventCountry "GEO"]
[SourceTitle "playchess.com"]
[Source "ChessBase"]
[SourceQuality "1"]
[TimeControl "5400+30"]

1. e4 {[%emt 0:00:01]} c5 {[%emt 0:00:00]} 2. Nf3 {[%emt 0:00:07]} Nc6 {[%emt 0:00:06]} 3. d4 {[%emt 0:00:03]} cxd4 {[%emt 0:00:02]} 4. Nxd4 {[%emt 0:00:03]} Nf6 {[%emt 0:00:06]} 5. Nc3 {[%emt 0:00:03]} d6 {[%emt 0:00:02]} 6. f3 {[%emt 0:00:04]} e5 {[%emt 0:00:19]} 7. Ndb5 {[%emt 0:01:30]} a6 {[%emt 0:03:44]} 8. Na3 {[%emt 0:00:04]} b5 {[%emt 0:02:54]} 9. Nd5 {[%emt 0:02:09]} Nxd5 {[%emt 0:05:06]} 10. Qxd5 {[%emt 0:09:08]} Bb7 {[%emt 0:02:24]} 11. c3 {[%emt 0:04:11]} Rc8 {[%emt 0:05:25]} 12. Be2 {[%emt 0:03:53]} Be7 {[%emt 0:18:26]} 13. Be3 {[%emt 0:04:51]} Qd7 {[%emt 0:06:03]} 14. Qd2 {[%emt 0:00:34]} O-O {[%emt 0:01:45]} 15. O-O {[%emt 0:01:39]} Rfd8 {[%emt 0:06:16]} 16. Rad1 {[%emt 0:01:30]} Qe6 {[%emt 0:05:33]} 17. c4 {[%emt 0:06:13]} b4 {[%emt 0:03:01]} 18. Nc2 {[%emt 0:00:30]} a5 {[%emt 0:05:45]} 19. b3 {[%emt 0:04:03]} Qg6 {[%emt 0:05:29]} 20. Qc1 {[%emt 0:21:00]} Ra8 {[%emt 0:03:32]} 21. Rd3 {[%emt 0:04:19]} f5 {[%emt 0:06:38]} 22. exf5 {[%emt 0:04:35]} Qxf5 {[%emt 0:00:09]} 23. Rfd1 {[%emt 0:05:29]} Qg6 {[%emt 0:07:23]} 24. Bb6 {[%emt 0:07:54]} Rf8 {[%emt 0:01:28]} 25. Bc7 {[%emt 0:08:59]} e4 {[%emt 0:02:27]} 26. fxe4 {[%emt 0:02:43]} Ne5 {[%emt 0:00:30]} 27. Rg3 {[%emt 0:00:40]} Qxe4 {[%emt 0:01:14]} 28. Bd3 {[%emt 0:07:33]} Nxd3 {[%emt 0:00:17]} 29. Rdxd3 {[%emt 0:00:13]} Bh4 {[%emt 0:02:05]} 30. Rgf3 {[%emt 0:00:53]} Rxf3 {[%emt 0:00:43]} 31. Rxf3 {[%emt 0:00:04]} Qg6 {[%emt 0:01:31]} 32. Nd4 {[%emt 0:00:58]} Re8 {[%emt 0:01:46]} 33. Nc2 {[%emt 0:00:32]} Bxf3 {[%emt 0:00:23]} 34. g3 {[%emt 0:00:04]} Bxg3 {[%emt 0:00:26]} 0-1

[Event "FIDE World Cup G12-A 2024"]
[Site "Batumi"]
[Date "2024.06.26"]
[Round "4.1"]
[White "Lu, Xiahan (Luna)"]
[Black "Xue, Tianhao"]
[Result "0-1"]
[ECO "D85"]
[WhiteElo "1859"]
[BlackElo "1754"]
[Annotator "NA RC"]
[PlyCount "146"]
[EventDate "2024.06.23"]
[EventType "swiss"]
[EventCountry "GEO"]
[SourceTitle "playchess.com"]
[Source "ChessBase"]
[SourceQuality "1"]
[TimeControl "5400+30"]

1. d4 {[%emt 0:00:04]} Nf6 {[%emt 0:00:06]} 2. c4 {[%emt 0:00:04]} g6 {[%emt 0:00:05]} 3. Nc3 {[%emt 0:00:04]} d5 {[%emt 0:00:07]} 4. cxd5 {[%emt 0:00:08]} Nxd5 {[%emt 0:00:11]} 5. e4 {[%emt 0:00:14]} Nxc3 {[%emt 0:00:06]} 6. bxc3 {[%emt 0:00:08]} Bg7 {[%emt 0:00:07]} 7. Nf3 {[%emt 0:00:21]} c5 {[%emt 0:00:08]} 8. Bb5+ {[%emt 0:00:29]} Nc6 {[%emt 0:00:18]} 9. O-O {[%emt 0:00:34]} O-O {[%emt 0:00:34]} 10. Bxc6 {[%emt 0:00:20]} bxc6 {[%emt 0:00:03]} 11. Qc2 {[%emt 0:00:13] D85: Exchange Grünfeld: Unusual White 7th moves and lines with 7 Nf3.} cxd4 {[%emt 0:06:58]} 12. cxd4 {[%emt 0:00:17]} Bg4 {[%emt 0:02:41]} 13. Ne5 {[%emt 0:00:44]} Bxe5 {[%emt 0:11:11]} 14. dxe5 {[%emt 0:00:13]} Qc7 {[%emt 0:02:08]} 15. Qc3 {[%emt 0:04:23]} c5 {[%emt 0:16:16]} 16. Bb2 {[%emt 0:08:54]} (16. f3 $14 {is more appropriate.} Bc8 17. Bg5) 16... c4 {[%emt 0:08:54]} 17. f3 {[%emt 0:05:25]} Be6 {[%emt 0:03:33]} 18. f4 {[%emt 0:03:03]} Bg4 {[%emt 0:08:35]} 19. f5 {[%emt 0:04:30]} Be2 {[%emt 0:06:25]} 20. Qe3 $19 {[%emt 0:07:15]} Bxf1 {[%emt 0:09:37]} 21. f6 {[%emt 0:00:59]} exf6 {[%emt 0:02:50]} 22. exf6 {[%emt 0:00:12]} Kh8 {[%emt 0:03:30]} 23. Rxf1 {[%emt 0:03:22]} Rad8 {[%emt 0:06:29]} 24. Bd4 {[%emt 0:03:41]} Qd7 {[%emt 0:05:23]} 25. Bc5 {[%emt 0:04:31]} Rg8 {[%emt 0:01:32]} 26. e5 {[%emt 0:01:47]} Qe6 {[%emt 0:01:27]} 27. Be7 {[%emt 0:00:32]} Rc8 {[%emt 0:01:24]} 28. Bd6 {[%emt 0:01:11]} c3 {[%emt 0:00:29]} 29. Rc1 {[%emt 0:04:05]} c2 {[%emt 0:00:39]} 30. Qe2 {[%emt 0:01:58]} Qf5 {[%emt 0:02:33]} 31. e6 {[%emt 0:02:08]} Rge8 {[%emt 0:00:44]} 32. e7 {[%emt 0:04:30]} Kg8 {[%emt 0:00:25]} 33. Be5 {[%emt 0:01:20]} Qg5 {[%emt 0:00:39]} 34. Bb2 {[%emt 0:00:58]} Qc5+ {[%emt 0:00:02]} 35. Kh1 {[%emt 0:00:59]} Qb4 {[%emt 0:00:35]} 36. Qe5 {[%emt 0:01:22]} Rc5 {[%emt 0:00:48]} 37. Qd4 {[%emt 0:01:40]} Qxd4 {[%emt 0:00:13]} 38. Bxd4 {[%emt 0:00:05]} Rd5 {[%emt 0:00:13]} 39. Bg1 {[%emt 0:00:42]} Rf5 {[%emt 0:00:40]} 40. Bd4 {[%emt 0:01:09]} Rf4 {[%emt 0:00:39]} 41. Bb2 {[%emt 0:00:59]} Rc4 {[%emt 0:00:30]} 42. Kg1 {[%emt 0:00:42]} h6 {[%emt 0:00:41]} 43. Kf2 {[%emt 0:00:49]} Kh7 {[%emt 0:00:09]} 44. Ke3 {[%emt 0:00:14]} Rc6 {[%emt 0:00:43]} 45. Kd3 {[%emt 0:00:35]} Rec8 {[%emt 0:00:24]} 46. Re1 {[%emt 0:01:56]} Rd6+ {[%emt 0:00:28]} 47. Bd4 {[%emt 0:00:37]} g5 {[%emt 0:00:21]} 48. Rc1 {[%emt 0:01:17]} Rdc6 {[%emt 0:00:25]} 49. Kd2 {[%emt 0:01:01]} Kg6 {[%emt 0:00:24]} 50. Bb2 {[%emt 0:01:05]} Rd6+ {[%emt 0:00:41]} 51. Ke2 {[%emt 0:00:28]} Rb6 {[%emt 0:00:37]} 52. Bd4 {[%emt 0:01:13]} Rb1 {[%emt 0:00:43]} 53. Kd2 {[%emt 0:00:13]} Rxc1 {[%emt 0:00:14]} 54. Kxc1 {[%emt 0:00:06]} Kf5 {[%emt 0:00:19]} 55. Bb2 {[%emt 0:00:18]} Ke6 {[%emt 0:00:08]} 56. Kd2 {[%emt 0:00:15]} Kd7 {[%emt 0:00:09]} 57. Kc1 {[%emt 0:00:27]} Rc4 {[%emt 0:00:20]} 58. Kd2 {[%emt 0:02:06]} h5 {[%emt 0:00:22]} 59. g3 {[%emt 0:00:16]} a5 {[%emt 0:00:23]} 60. a3 {[%emt 0:00:24]} a4 {[%emt 0:00:30]} 61. Bc1 {[%emt 0:00:32]} g4 {[%emt 0:00:58]} 62. Bb2 {[%emt 0:00:12]} Rc5 {[%emt 0:00:25]} 63. Kc1 {[%emt 0:01:03]} Rf5 {[%emt 0:00:40]} 64. Bd4 {[%emt 0:00:14]} Rf3 {[%emt 0:00:28]} 65. Kxc2 {[%emt 0:00:33]} Rxa3 {[%emt 0:00:16]} 66. Bb2 {[%emt 0:00:42]} Rf3 {[%emt 0:00:06]} 67. Bd4 {[%emt 0:00:14]} Rf1 {[%emt 0:00:17]} 68. Kb2 {[%emt 0:00:23]} Rh1 {[%emt 0:00:11]} 69. Ka3 {[%emt 0:00:06]} Rxh2 {[%emt 0:00:15]} 70. Kxa4 {[%emt 0:00:06]} h4 {[%emt 0:00:15]} 71. gxh4 {[%emt 0:00:37]} g3 {[%emt 0:00:32]} 72. Be5 {[%emt 0:00:16]} Rxh4+ {[%emt 0:00:07]} 73. Kb3 {[%emt 0:00:19]} g2 {[%emt 0:00:06]} 0-1

[Event "FIDE World Cup G12-A 2024"]
[Site "Batumi"]
[Date "2024.06.26"]
[Round "4.2"]
[White "Zavivaeva, Kristina"]
[Black "Xikmatkhonova, Mokhinur"]
[Result "1-0"]
[ECO "A30"]
[WhiteElo "1666"]
[BlackElo "1706"]
[Annotator "NA RC"]
[PlyCount "96"]
[EventDate "2024.06.23"]
[EventType "swiss"]
[EventCountry "GEO"]
[SourceTitle "playchess.com"]
[Source "ChessBase"]
[SourceQuality "1"]
[TimeControl "5400+30"]

1. Nf3 {[%emt 0:00:03]} c5 {[%emt 0:00:14]} 2. g3 {[%emt 0:00:06]} e6 {[%emt 0:00:15]} 3. Bg2 {[%emt 0:00:18]} Nc6 {[%emt 0:00:10]} 4. O-O {[%emt 0:00:08]} Nf6 {[%emt 0:00:08]} 5. c4 {[%emt 0:00:08]} Be7 {[%emt 0:02:18]} 6. b3 {[%emt 0:00:12]} d6 {[%emt 0:01:36]} 7. Bb2 {[%emt 0:00:07]} O-O {[%emt 0:00:12]} 8. d3 {[%emt 0:00:02]} e5 {[%emt 0:05:55]} 9. Nbd2 {[%emt 0:00:35]} h6 {[%emt 0:01:24]} 10. Rc1 {[%emt 0:01:31]} Be6 {[%emt 0:00:52]} 11. a3 {[%emt 0:00:26]} Rc8 {[%emt 0:04:52]} 12. Re1 {[%emt 0:02:55]} Qd7 {[%emt 0:04:16]} 13. e3 {[%emt 0:00:49]} Bg4 {[%emt 0:02:07]} 14. Qc2 {[%emt 0:01:35]} Bf5 {[%emt 0:13:27]} 15. Qc3 {[%emt 0:00:57]} Bd8 {[%emt 0:13:50]} 16. b4 {[%emt 0:01:17]} cxb4 {[%emt 0:01:37]} 17. axb4 {[%emt 0:00:13]} Qe7 {[%emt 0:04:26]} 18. b5 {[%emt 0:05:53]} Ba5 {[%emt 0:00:25]} 19. Qa3 {[%emt 0:00:43]} Bb4 {[%emt 0:00:59]} 20. Qa4 {[%emt 0:01:43]} Bxd2 {[%emt 0:01:40]} 21. Nxd2 {[%emt 0:00:08]} Nd8 {[%emt 0:00:25]} 22. Qxa7 {[%emt 0:02:29]} Bxd3 {[%emt 0:07:17]} 23. e4 {[%emt 0:00:45]} Ne6 {[%emt 0:00:37]} 24. Qe3 {[%emt 0:03:05]} Nc5 {[%emt 0:01:56]} 25. Ba3 {[%emt 0:01:37]} Rfd8 {[%emt 0:13:55]} 26. Bh3 {[%emt 0:07:02]} Ra8 {[%emt 0:01:32]} 27. Bxc5 {[%emt 0:00:44]} dxc5 {[%emt 0:00:07]} 28. Rc3 {[%emt 0:00:38]} Qd6 {[%emt 0:01:19]} 29. f3 {[%emt 0:09:04]} Ra4 {[%emt 0:06:36]} 30. Rec1 {[%emt 0:05:21]} Ra2 {[%emt 0:03:03]} 31. Nb3 {[%emt 0:05:34]} Bc2 {[%emt 0:07:55]} 32. Nxc5 {[%emt 0:03:19]} Qd2 {[%emt 0:00:29]} 33. Qxd2 {[%emt 0:00:54]} Rxd2 {[%emt 0:00:01]} 34. Nxb7 {[%emt 0:00:17]} Ba4 {[%emt 0:01:03]} 35. Bf1 {[%emt 0:01:13]} Rxh2 {[%emt 0:00:29]} 36. g4 {[%emt 0:01:57]} Rh4 {[%emt 0:00:30]} 37. c5 {[%emt 0:01:17]} Ne8 {[%emt 0:00:30]} 38. c6 {[%emt 0:00:34]} h5 {[%emt 0:00:30]} 39. g5 {[%emt 0:02:51]} Rb2 {[%emt 0:00:30]} 40. Ra3 {[%emt 0:01:22]} Nc7 {[%emt 0:00:32]} 41. Rxa4 {[%emt 0:00:12]} Rhh2 {[%emt 0:00:24]} 42. b6 {[%emt 0:41:26]} Ne6 {[%emt 0:00:31]} 43. c7 {[%emt 0:00:00]} Nxg5 {[%emt 0:00:22]} 44. c8=Q+ {[%emt 0:01:00]} Kh7 {[%emt 0:00:06]} 45. Qf5+ {[%emt 0:00:00]} Kh6 {[%emt 0:00:06]} 46. Ra8 {[%emt 0:00:00]} Nxf3+ {[%emt 0:01:23]} 47. Qxf3 {[%emt 0:00:00]} Rh4 {[%emt 0:00:12]} 48. Rh8+ {[%emt 0:00:00]} Kg6 {[%emt 0:00:05]} 1-0

[Event "FIDE World Cup G12-A 2024"]
[Site "Batumi"]
[Date "2024.06.26"]
[Round "4.3"]
[White "Kaminska, Zuzanna"]
[Black "Qiu, Laurie"]
[Result "1-0"]
[ECO "C52"]
[WhiteElo "1848"]
[BlackElo "2068"]
[Annotator "NA RC"]
[PlyCount "83"]
[EventDate "2024.06.23"]
[EventType "swiss"]
[EventCountry "GEO"]
[SourceTitle "playchess.com"]
[Source "ChessBase"]
[SourceQuality "1"]
[TimeControl "5400+30"]

1. e4 {[%emt 0:00:04]} e5 {[%emt 0:00:05]} 2. Nf3 {[%emt 0:00:11]} Nc6 {[%emt 0:00:06]} 3. Bc4 {[%emt 0:00:13]} Bc5 {[%emt 0:00:37]} 4. b4 {[%emt 0:00:31]} Bxb4 {[%emt 0:00:18]} 5. c3 {[%emt 0:00:19]} Ba5 {[%emt 0:00:05]} 6. d4 {[%emt 0:00:18]} exd4 {[%emt 0:00:09] 6...d6 deserves study.} 7. O-O {[%emt 0:00:38]} Nf6 {[%emt 0:03:01]} ({Of course not} 7... Bxc3 8. Nxc3 dxc3 9. Re1 $14) 8. Ba3 {[%emt 0:00:55]} d6 $1 {[%emt 0:00:52] C52: Evans Gambit Accepted: 5 c3 Ba5.} ({Much worse is} 8... Nxe4 $6 9. Bd5 $16) (8... Bxc3 9. Nxc3 dxc3 10. Qb3 $16) 9. e5 $1 {[%emt 0:00:59]} Ne4 $1 {[%emt 0:06:43]} (9... dxe5 $2 {perishes.} 10. Qb3 Qd7 11. Re1 $16) 10. exd6 $1 {[%emt 0:05:36]} cxd6 {[%emt 0:08:08]} 11. Re1 {[%emt 0:09:51]} d5 $2 {[%emt 0:09:25] [#]} (11... Bxc3 $2 {loses.} 12. Rxe4+ Be6 13. Nxc3 $18) (11... O-O $1 $15 {keeps the upper hand.} 12. Rxe4 d5 (12... Bxc3 $2 {too greedy.} 13. Nxc3 dxc3 14. Qxd6 $18)) 12. Nxd4 {[%emt 0:18:10]} (12. Nbd2 $1 $18 {[%cal Rd2e4] is the precise move to win.} f5 (12... dxc3 $2 {perishes.} 13. Nxe4 dxe4 14. Rxe4+ Be6 15. Qb3 $18) 13. Nxd4 Bxc3 14. Nb5 Bxd2 (14... Bxa1 15. Bxd5 Qf6 16. Nxe4 $18) 15. Qxd2) 12... Be6 {[%emt 0:06:56]} 13. Bb5 $146 {[%emt 0:08:53]} ({Predecessor:} 13. Qa4 Qb6 14. Bb5 Rc8 15. Rxe4 dxe4 16. Nb3 f5 17. Qxa5 Kf7 18. Qxb6 axb6 19. Be2 {½-½ Jaroch,K (2243)-Gawronski,M (2206) Chelmza op-A 2009 (3)}) 13... Qb6 {[%emt 0:07:41] [#]} 14. Rxe4 {[%emt 0:09:57]} dxe4 {[%emt 0:07:02]} 15. Nxc6 {[%emt 0:02:29]} Qxb5 {[%emt 0:02:30]} ({Stronger than} 15... bxc6 16. Qd6) 16. Qd6 $1 {[%emt 0:01:07]} Bd8 $2 {[%emt 0:01:35]} (16... Qg5 $11 {and Black stays safe.} 17. Nd2 (17. Nxa5 $2 Rd8 $19) 17... e3 (17... bxc6 $2 {loses.} 18. Qxc6+ Bd7 19. Qxe4+ Be6 20. Qc6+ Kd8 21. Qxa8+ Kd7 22. Qxa7+ Bc7 23. Qa4+ Kc8 24. Ne4 $18) (17... Bxc3 $2 {perishes.} 18. Nxe4 Rd8 19. Nxd8 $18)) 17. Nxd8 {[%emt 0:02:53]} Qd7 {[%emt 0:00:22]} 18. Nxe6 {[%emt 0:02:28]} Qxe6 {[%emt 0:12:57]} 19. Qxe6+ {[%emt 0:01:28]} fxe6 {[%emt 0:00:02]} 20. Nd2 {[%emt 0:02:32]} e3 {[%emt 0:00:33]} 21. fxe3 {[%emt 0:00:18]} Rd8 {[%emt 0:02:05]} 22. Ne4 {[%emt 0:00:41]} Rd3 {[%emt 0:02:10]} 23. Kf2 {[%emt 0:04:44]} b6 {[%emt 0:03:25]} 24. Ke2 {[%emt 0:00:51]} Rd5 {[%emt 0:01:16]} 25. c4 {[%emt 0:01:22]} Rh5 {[%emt 0:03:29]} 26. h3 {[%emt 0:05:11]} Kd7 $18 {[%emt 0:02:52]} 27. Rf1 {[%emt 0:03:42]} Ra5 {[%emt 0:05:06]} 28. Rd1+ {[%emt 0:02:36]} Kc7 {[%emt 0:02:00]} 29. Bd6+ {[%emt 0:01:13]} Kc6 {[%emt 0:00:25]} 30. a3 {[%emt 0:00:40]} Rd8 {[%emt 0:00:17]} 31. g4 {[%emt 0:00:32]} h5 {[%emt 0:07:08]} 32. Rd4 {[%emt 0:02:33]} hxg4 {[%emt 0:00:31]} 33. hxg4 {[%emt 0:00:15]} b5 {[%emt 0:05:06]} 34. Bb4 {[%emt 0:03:50]} Rxd4 {[%emt 0:00:05]} 35. exd4 {[%emt 0:00:06]} Ra6 {[%emt 0:00:10]} 36. c5 {[%emt 0:02:27]} e5 {[%emt 0:01:54]} 37. Kd3 {[%emt 0:01:01]} exd4 {[%emt 0:00:15]} 38. Kxd4 {[%emt 0:00:10]} Kd7 {[%emt 0:00:23]} 39. Nd6 {[%emt 0:00:38]} Rc6 {[%emt 0:00:11]} 40. Kd5 {[%emt 0:01:11]} a6 {[%emt 0:00:10]} 41. Ba5 {[%emt 0:01:14]} g6 {[%emt 0:00:20]} 42. g5 {[%emt 0:00:55]} 1-0

[Event "FIDE World Cup G12-A 2024"]
[Site "Batumi"]
[Date "2024.06.26"]
[Round "4.4"]
[White "Muradova, Nebahat"]
[Black "Venskaya, Nika"]
[Result "0-1"]
[ECO "E81"]
[WhiteElo "1626"]
[BlackElo "1774"]
[Annotator "NA RC"]
[PlyCount "76"]
[EventDate "2024.06.23"]
[EventType "swiss"]
[EventCountry "GEO"]
[SourceTitle "playchess.com"]
[Source "ChessBase"]
[SourceQuality "1"]
[TimeControl "5400+30"]

1. d4 {[%emt 0:00:01]} Nf6 {[%emt 0:00:06]} 2. c4 {[%emt 0:00:04]} g6 {[%emt 0:00:05]} 3. Nc3 {[%emt 0:00:10]} Bg7 {[%emt 0:00:08]} 4. e4 {[%emt 0:00:05]} d6 {[%emt 0:00:04]} 5. f3 {[%emt 0:00:11]} O-O {[%emt 0:00:35]} 6. Bd3 {[%emt 0:00:05]} e5 {[%emt 0:05:13]} 7. dxe5 {[%emt 0:01:09]} dxe5 {[%emt 0:00:06]} 8. Be3 {[%emt 0:00:18]} Nbd7 {[%emt 0:02:30]} 9. Nge2 {[%emt 0:01:39]} c6 {[%emt 0:00:14]} 10. O-O {[%emt 0:00:35]} Qc7 {[%emt 0:01:08]} 11. b4 {[%emt 0:04:34]} Nh5 {[%emt 0:07:59]} 12. Rc1 {[%emt 0:04:28]} Rd8 {[%emt 0:03:11]} 13. Qb3 {[%emt 0:05:01]} Nf8 {[%emt 0:00:40]} 14. Rfd1 {[%emt 0:02:16]} Ne6 {[%emt 0:02:04]} 15. b5 {[%emt 0:06:29]} Nd4 {[%emt 0:12:13]} 16. Qb2 {[%emt 0:07:22]} Be6 {[%emt 0:07:34]} 17. bxc6 {[%emt 0:05:22]} bxc6 {[%emt 0:00:11]} 18. Nd5 {[%emt 0:14:25]} Qd6 {[%emt 0:18:18]} 19. c5 {[%emt 0:03:14]} Qd7 {[%emt 0:00:19]} 20. Nb4 {[%emt 0:08:02]} Rab8 {[%emt 0:03:39]} 21. Qa3 {[%emt 0:05:07]} f5 {[%emt 0:05:10]} 22. Qa4 {[%emt 0:08:05]} Rbc8 {[%emt 0:06:32]} 23. Ba6 {[%emt 0:03:05]} Rc7 {[%emt 0:00:28]} 24. Bxd4 {[%emt 0:02:27]} exd4 {[%emt 0:00:09]} 25. Nc2 {[%emt 0:00:42]} d3 {[%emt 0:05:19]} 26. Rxd3 {[%emt 0:01:34]} Qe7 {[%emt 0:05:12]} 27. Rxd8+ {[%emt 0:01:01]} Qxd8 {[%emt 0:00:01]} 28. exf5 {[%emt 0:02:37]} Bxf5 {[%emt 0:03:41]} 29. Ne3 {[%emt 0:02:16]} Be6 {[%emt 0:02:11]} 30. Rd1 {[%emt 0:01:22]} Qg5 {[%emt 0:00:54]} 31. Qa3 {[%emt 0:00:53]} Bf8 {[%emt 0:01:51]} 32. Rc1 {[%emt 0:02:56]} Re7 {[%emt 0:02:17]} 33. Nd4 {[%emt 0:02:51]} Bf7 {[%emt 0:01:27]} 34. Nf1 {[%emt 0:02:17]} Re5 {[%emt 0:00:28]} 35. Nxc6 {[%emt 0:00:35]} Rxc5 {[%emt 0:00:33]} 36. Rb1 {[%emt 0:02:11]} Rc2 {[%emt 0:01:36]} 37. Ne7+ {[%emt 0:01:56]} Bxe7 {[%emt 0:00:26]} 38. Rb8+ {[%emt 0:00:15]} Kg7 {[%emt 0:00:08]} 0-1

[Event "FIDE World Cup G12-A 2024"]
[Site "Batumi"]
[Date "2024.06.26"]
[Round "4.5"]
[White "Chichinadze, Anastasia"]
[Black "Mirzaliyeva, Leyla"]
[Result "0-1"]
[ECO "B24"]
[WhiteElo "1724"]
[BlackElo "1548"]
[Annotator "NA RC"]
[PlyCount "62"]
[EventDate "2024.06.23"]
[EventType "swiss"]
[EventCountry "GEO"]
[SourceTitle "playchess.com"]
[Source "ChessBase"]
[SourceQuality "1"]
[TimeControl "5400+30"]

1. e4 {[%emt 0:00:02]} c5 {[%emt 0:00:06]} 2. Nc3 {[%emt 0:00:03]} d6 {[%emt 0:00:08]} 3. g3 {[%emt 0:00:03]} Nf6 {[%emt 0:00:21]} 4. Bg2 {[%emt 0:00:07]} Nc6 {[%emt 0:00:59]} 5. d3 {[%emt 0:00:15]} e5 {[%emt 0:04:10]} 6. h3 {[%emt 0:01:34]} Be6 {[%emt 0:00:25]} 7. Be3 {[%emt 0:01:54]} Be7 {[%emt 0:00:43]} 8. Qd2 {[%emt 0:01:35]} Rb8 {[%emt 0:01:26]} 9. Nge2 {[%emt 0:01:56]} b5 {[%emt 0:05:05]} 10. f4 {[%emt 0:06:20]} Nd4 {[%emt 0:03:46]} 11. O-O {[%emt 0:03:07]} Bd7 {[%emt 0:10:18]} 12. f5 {[%emt 0:07:53]} b4 {[%emt 0:02:35]} 13. Bxd4 {[%emt 0:03:27]} cxd4 {[%emt 0:02:07]} 14. Nd1 {[%emt 0:03:02]} Bc6 {[%emt 0:02:02]} 15. g4 {[%emt 0:07:36]} h6 {[%emt 0:00:53]} 16. Ng3 {[%emt 0:02:58]} d5 {[%emt 0:09:07]} 17. Nf2 {[%emt 0:05:50]} dxe4 {[%emt 0:02:43]} 18. Nfxe4 {[%emt 0:13:50]} Bxe4 {[%emt 0:05:41]} 19. Bxe4 {[%emt 0:10:09]} Qb6 {[%emt 0:05:19]} 20. Bg2 {[%emt 0:04:16]} Rc8 {[%emt 0:42:36]} 21. Rae1 {[%emt 0:02:37]} O-O {[%emt 0:00:00]} 22. Re2 {[%emt 0:07:05]} Rc7 {[%emt 0:00:00]} 23. Rfe1 {[%emt 0:04:31]} b3 {[%emt 0:00:00]} 24. axb3 {[%emt 0:05:18]} Bb4 {[%emt 0:00:00]} 25. Qd1 {[%emt 0:01:06]} Bxe1 {[%emt 0:00:00]} 26. Qxe1 {[%emt 0:00:12]} Rfc8 {[%emt 0:00:00]} 27. Qd1 {[%emt 0:01:06]} a5 {[%emt 0:00:00]} 28. Ne4 {[%emt 0:02:06]} Nd5 {[%emt 0:00:00]} 29. Nd2 {[%emt 0:01:57]} Ne3 {[%emt 0:00:00]} 30. Nc4 {[%emt 0:00:23]} Rxc4 {[%emt 0:00:00]} 31. Rxe3 {[%emt 0:00:16]} dxe3 {[%emt 0:00:00]} 0-1